bitfinex/quotes_ETHUSD_20240926
["timestamp","ask_amount","ask_price","bid_price","bid_amount"]
[1727361117957,4.19755626,2629.6,2629.0,3.80371]
[1727361118109,3.80235,2630.0,2629.3,3.80321]
[1727361118314,4.19697393,2630.0,2629.5,0.8184]
[1727361118711,0.8302,2630.5,2629.5,0.8184]
[1727361118712,3.80259,2629.8,2629.5,0.8184]
[1727361118941,0.8302,2630.5,2629.5,0.8184]
[1727361118942,3.80241,2630.0,2629.5,0.8184]
[1727361119347,3.80255,2629.9,2629.5,0.8184]
[1727361119554,2.0,2630.4,2629.5,0.8184]
[1727361119711,3.80285,2629.6,2628.9,3.80379]
[1727361120109,0.7569,2629.8,2628.8,0.7764]
[1727361120316,3.0,2630.0,2628.5,3.80435]
[1727361120317,3.80349,2629.2,2628.5,3.80435]
[1727361120619,0.680349,2629.2,2628.5,3.80435]
[1727361120929,3.80339,2629.3,2628.6,3.8168662]
[1727361121127,3.80413,2628.8,2628.6,0.0125762]
[1727361121333,3.89926546,2628.7,2628.6,0.0125762]
[1727361121542,3.80416,2628.7,2628.6,0.0125762]
[1727361121739,4.564989,2628.7,2628.6,0.0125762]
[1727361121909,3.80416,2628.7,2628.6,0.0125762]
[1727361125050,4.61066,2628.7,2628.6,0.0125762]
[1727361125254,7.7057879,2628.7,2628.6,0.0125762]
[1727361125453,8.13913054,2628.7,2628.6,0.0125762]
[1727361125755,8.13913054,2628.7,2627.3,0.7804]
[1727361125756,2.0,2628.4,2627.3,0.7804]
[1727361126051,3.80604,2627.4,2627.3,0.7804]
[1727361126358,3.8059,2627.5,2627.3,0.7804]
[1727361126567,3.80565,2627.7,2627.3,0.7804]
[1727361126750,6.61066,2628.7,2627.3,0.7804]
[1727361126751,3.80549,2627.8,2627.3,0.7804]
[1727361126958,3.80571,2627.7,2627.3,0.7804]
[1727361127273,3.80549,2627.8,2627.3,0.7804]
[1727361127440,3.80568,2627.7,2627.3,0.7804]
[1727361127639,3.80491,2628.2,2627.3,0.7804]
[1727361127640,3.80576,2627.6,2627.3,0.7804]
[1727361127838,3.80618,2627.3,2627.2,0.0643572]
[1727361128346,3.80605,2627.4,2627.2,0.0643572]
[1727361128562,3.80585,2627.6,2627.2,0.0643572]
[1727361129231,3.80604,2627.4,2627.2,0.0643572]
[1727361129540,3.80618,2627.3,2627.2,0.0643572]
[1727361130131,3.80618,2627.3,2627.2,0.0634559]
[1727361130333,7.67984403,2627.3,2627.2,0.0634559]
[1727361130564,9.67984403,2627.3,2627.2,0.0634559]
[1727361130875,9.58468,2627.3,2627.2,0.0634559]
[1727361131167,10.9998729,2627.3,2627.2,0.0634559]
[1727361131667,8.9998729,2627.3,2627.2,0.0634559]
[1727361132638,6.80618,2627.3,2627.2,0.0634559]
[1727361132863,3.80618,2627.3,2627.2,0.0634559]
[1727361133029,3.80556,2627.8,2627.3,0.8027]
[1727361133242,3.80522,2628.0,2627.3,0.8027]
[1727361133481,3.80604,2627.4,2627.3,0.8027]
[1727361133766,3.80604,2627.4,2627.2,0.0634559]
[1727361133767,3.80618,2627.3,2627.2,0.0634559]
[1727361134135,3.80604,2627.4,2627.2,0.0634559]
[1727361134448,0.46846521,2628.1,2627.2,0.0634559]
[1727361134449,4.20029523,2627.8,2627.2,0.0634559]
[1727361134658,3.80345,2629.2,2627.9,3.80522]
[1727361134872,3.80431,2628.6,2627.9,3.80522]
[1727361135033,3.80405,2628.8,2628.0,3.80513]
[1727361135232,3.80405,2628.8,2627.7,5.37907472]
[1727361135233,3.8038,2629.0,2628.3,0.7913]
[1727361135665,3.80292,2629.6,2628.6,3.80425]
[1727361135971,3.80316,2629.4,2628.7,0.7783]
[1727361136146,3.80345,2629.2,2628.7,0.7783]
[1727361136468,3.80333,2629.3,2628.7,0.7783]
[1727361136675,0.760649,2629.3,2628.7,0.7783]
[1727361136872,3.80401,2628.8,2628.7,0.7783]
[1727361137171,3.80421,2628.7,2628.1,0.8011]
[1727361137347,3.80421,2628.7,2628.1,4.60607]
[1727361137546,3.80441,2628.6,2628.1,0.8011]
[1727361137738,3.80377,2629.0,2628.3,3.80465]
[1727361138079,3.80411,2628.8,2628.1,0.8011]
[1727361138238,3.0,2629.0,2628.1,0.8011]
[1727361138440,3.8044,2628.6,2628.1,0.8011]
[1727361138780,7.60884,2628.6,2628.1,0.8011]
[1727361139084,3.80445,2628.5,2628.1,0.8011]
[1727361139247,3.8044,2628.6,2628.1,0.8011]
[1727361139443,3.80406,2628.8,2628.1,0.8011]
[1727361139664,3.80441,2628.6,2628.1,0.8011]
[1727361140373,3.80468,2628.4,2628.1,0.8011]
[1727361140534,3.80441,2628.6,2628.1,0.8011]
[1727361141069,3.80407,2628.8,2628.2,3.80478]
[1727361141366,3.0,2629.2,2628.1,0.8011]
[1727361141367,3.80417,2628.7,2628.1,0.8011]
[1727361141967,3.80417,2628.7,2628.1,4.60604]
[1727361142300,3.80391,2628.9,2628.3,3.80462]
[1727361142505,3.80359,2629.1,2628.4,0.0760794]
[1727361142806,3.80359,2629.1,2628.5,7.60877]
[1727361142970,4.264237,2629.3,2628.6,0.7777]
[1727361143301,4.264237,2629.3,2628.6,4.58199]
[1727361143302,3.80344,2629.2,2628.6,4.58199]
[1727361143601,4.264237,2629.3,2628.6,4.58199]
[1727361143602,3.80367,2629.1,2628.6,0.7777]
[1727361143792,3.80392,2628.9,2628.6,0.7777]
[1727361144166,3.80366,2629.1,2628.6,0.7777]
[1727361144473,3.80337,2629.3,2628.6,0.7777]
[1727361144715,7.6068,2629.3,2628.6,4.58199]
[1727361144892,3.80337,2629.3,2628.6,0.7777]
[1727361145250,3.80361,2629.1,2628.6,0.7777]
[1727361145506,3.80378,2629.0,2628.6,0.7777]
[1727361145874,4.183717,2629.3,2628.6,0.7777]
[1727361146078,4.183717,2629.3,2628.6,4.58199]
[1727361146079,3.80361,2629.1,2628.6,4.58199]
[1727361146805,3.80307,2629.5,2628.6,0.7777]
[1727361147103,3.80192,2630.3,2629.5,3.80299]
[1727361147304,3.80192,2630.3,2629.4,3.80301]
[1727361147305,3.8024,2630.0,2629.4,3.80301]
[1727361147609,7.60496,2629.9,2629.4,3.80301]
[1727361147769,3.80258,2629.8,2629.3,0.765]
[1727361148163,3.80273,2629.7,2629.3,0.765]
[1727361148364,3.80286,2629.6,2629.3,0.765]
[1727361148569,3.80273,2629.7,2629.3,0.765]
[1727361149397,3.80286,2629.6,2629.3,0.765]
[1727361149700,3.80088,2631.0,2630.2,0.7956]
[1727361149900,3.80077,2631.1,2630.5,3.80145]
[1727361150223,3.80001,2631.6,2630.5,7.60291]
[1727361150224,3.80062,2631.2,2630.5,7.60291]
[1727361150423,3.80062,2631.2,2630.5,3.80145]
[1727361150624,3.7997,2631.8,2630.3,0.55]
[1727361150942,3.80063,2631.2,2630.5,3.80147]
[1727361151589,3.80063,2631.2,2630.5,7.60294]
[1727361152019,3.80012,2631.5,2630.7,3.80126]
[1727361152579,7.60038,2631.5,2630.6,9.94159529]
[1727361152783,3.80017,2631.5,2630.7,3.80126]
[1727361153315,0.0407431,2631.7,2630.7,8.15226]
[1727361153480,0.0407431,2631.7,2631.6,10.52144529]
[1727361153682,0.0407431,2631.7,2631.6,9.97144529]
[1727361154500,0.0407431,2631.7,2631.6,0.801]
[1727361154713,0.0407431,2631.7,2631.6,4.60096]
[1727361154896,0.0407431,2631.7,2631.6,9.97144529]
[1727361155725,0.0407431,2631.7,2631.6,6.17148529]
[1727361155920,0.0407431,2631.7,2631.6,0.801]
[1727361157630,0.0407431,2631.7,2631.6,4.60096]
[1727361158426,0.0407431,2631.7,2631.6,0.801]
[1727361158937,0.0407431,2631.7,2631.6,9.97144529]
[1727361159441,0.0407431,2631.7,2631.6,4.60096]
[1727361159650,0.0407431,2631.7,2631.6,0.801]
[1727361160004,0.0407431,2631.7,2631.2,0.7572]
[1727361160406,0.0407431,2631.7,2631.2,4.55762]
[1727361160612,0.0407431,2631.7,2631.3,3.80031]
[1727361160914,0.0407431,2631.7,2631.5,5.30214164]
[1727361161133,0.0407431,2631.7,2631.5,9.10225164]
[1727361161444,0.0407431,2631.7,2631.6,0.7845]
[1727361161950,0.0407431,2631.7,2631.6,5.13446]
[1727361162252,0.0407431,2632.5,2632.4,3.79881]
[1727361162465,0.0407431,2632.5,2632.4,4.60341]
[1727361164121,0.0407431,2632.5,2632.4,5.15341]
[1727361164349,0.0407431,2633.3,2633.1,3.7977]
[1727361164554,0.0407431,2633.3,2633.0,0.7588]
[1727361164723,3.8382531,2633.3,2633.0,0.7588]
[1727361165064,0.0407431,2633.3,2633.0,0.7588]
[1727361165224,0.0407431,2633.3,2633.2,5.30214164]
[1727361165725,0.0407431,2633.3,2633.0,0.7588]
[1727361165922,0.0407431,2633.3,2633.1,0.07594818]
[1727361166159,0.0407431,2633.3,2633.2,9.17574972]
[1727361166374,0.0407431,2633.3,2633.2,9.64980164]
[1727361166668,0.0407431,2633.3,2633.2,10.41610164]
[1727361168662,0.0407431,2633.3,2633.2,9.86610164]
[1727361168869,0.0407431,2633.3,2633.2,6.06844164]
[1727361169271,0.0407431,2633.3,2633.2,9.86610164]
[1727361169475,0.0407431,2634.2,2633.2,6.06844164]
[1727361169628,0.0407431,2634.2,2633.7,9.09901164]
[1727361169829,3.79636,2634.1,2633.7,5.30214164]
[1727361170028,0.0407431,2634.2,2633.7,5.30214164]
[1727361170826,3.79691,2633.8,2633.3,5.30214164]
[1727361171474,0.39652411,2634.2,2633.3,5.30214164]
[1727361171698,3.79732,2633.5,2633.2,0.7663]
[1727361171848,3.8090798,2634.2,2633.2,0.7663]
[1727361172045,3.797,2633.7,2633.2,0.7663]
[1727361172246,3.79708,2633.6,2633.2,0.7663]
[1727361172591,3.79695,2633.7,2633.2,0.7663]
[1727361172894,0.0128298,2634.2,2633.3,3.79738]
[1727361173183,3.7966,2634.0,2633.4,3.79736]
[1727361173556,3.79687,2633.8,2633.3,0.55]
[1727361174174,7.59379,2633.8,2633.3,0.55]
[1727361174547,3.79687,2633.8,2633.3,4.34743]
[1727361174747,3.79687,2633.8,2633.3,0.55]
[1727361174979,3.79708,2633.7,2633.2,0.7663]
[1727361175188,3.79737,2633.4,2633.2,0.7663]
[1727361175490,4.59765,2633.9,2632.7,9.14693924]
[1727361175491,3.79791,2633.1,2632.7,0.7955]
[1727361175982,3.79782,2633.1,2632.7,0.7955]
[1727361176190,3.7971,2633.6,2632.7,0.7955]
[1727361176349,4.256613,2633.8,2632.7,0.7955]
[1727361176547,7.59598,2633.0,2632.7,0.7955]
[1727361176752,3.79823,2632.8,2632.7,0.7955]
[1727361177380,3.79809,2632.9,2632.7,0.7955]
[1727361177583,3.79823,2632.8,2632.7,0.7955]
[1727361177784,3.7981,2632.9,2632.7,0.7955]
[1727361178466,3.79796,2633.0,2632.7,0.7955]
[1727361179006,3.79823,2632.8,2632.7,0.7955]
[1727361179222,3.79823,2632.8,2632.4,0.55]
[1727361179428,3.79854,2632.6,2632.4,0.55]
[1727361179781,3.79881,2632.4,2631.7,0.7578]
[1727361179982,0.457233,2632.9,2631.7,4.55759]
[1727361180181,3.7995,2632.0,2631.7,0.7578]
[1727361180480,3.79966,2631.9,2631.7,0.7578]
[1727361180794,0.457233,2632.9,2631.7,0.7578]
[1727361180795,3.79932,2632.1,2631.7,0.7578]
[1727361181321,0.457233,2632.9,2631.7,0.7578]
[1727361181623,3.79924,2632.1,2631.7,0.7578]
[1727361181927,7.59857,2632.1,2631.7,0.7578]
[1727361182093,3.79886,2632.4,2631.7,0.7578]
[1727361182293,3.79941,2632.0,2631.7,0.7578]
[1727361182704,3.79941,2632.0,2631.3,3.80038]
[1727361182705,3.79968,2631.8,2631.3,3.8229]
[1727361183026,3.79992,2631.7,2631.3,0.8229]
[1727361183232,3.8,2631.6,2631.3,0.8229]
[1727361183412,3.8002,2631.5,2631.3,0.8229]
[1727361183727,3.8002,2631.5,2630.8,0.7618]
[1727361183884,3.80028,2631.4,2630.8,4.56278]
[1727361184083,3.80042,2631.3,2630.8,0.7618]
[1727361184326,3.80056,2631.2,2630.8,0.7618]
[1727361184632,3.80072,2631.1,2630.8,0.7618]
[1727361184925,3.80042,2631.3,2630.8,0.7618]
[1727361185351,3.80021,2631.5,2630.9,3.80097]
[1727361185628,3.79955,2631.9,2631.3,3.80039]
[1727361185830,3.79955,2631.9,2631.4,4.56675]
[1727361186132,3.79955,2631.9,2631.4,0.7665]
[1727361186727,3.79985,2631.7,2631.4,0.7665]
[1727361187030,3.80011,2631.5,2631.1,0.7939]
[1727361187334,3.79942,2632.0,2631.4,3.80013]
[1727361187550,3.79932,2632.1,2631.5,3.87608709]
[1727361187685,3.79949,2632.0,2631.6,0.7589]
[1727361188326,3.79954,2631.9,2631.6,0.7589]
[1727361188495,3.79949,2632.0,2631.6,0.7589]
[1727361189191,1.5592843,2632.8,2631.8,0.55]
[1727361189387,3.7994,2632.0,2631.8,0.55]
[1727361189589,3.79855,2632.6,2631.7,4.34982]
[1727361189792,3.79833,2632.8,2632.0,0.55]
[1727361190128,3.79833,2632.8,2632.4,0.7632]
[1727361190461,3.79771,2633.2,2632.6,0.55]
[1727361190662,0.8129,2633.4,2632.6,0.55]
[1727361190663,3.79817,2632.9,2632.6,0.55]
[1727361190878,3.7984,2632.7,2632.4,0.7632]
[1727361191671,3.79818,2632.9,2632.4,0.7632]
[1727361191672,3.79823,2632.8,2632.4,0.7632]
[1727361192164,3.79846,2632.7,2632.4,0.7632]
[1727361192465,7.59756,2632.5,2632.0,0.7668]
[1727361192629,3.79877,2632.5,2632.0,0.7668]
[1727361193330,3.79877,2632.5,2632.0,4.56618]
[1727361193521,7.59751,2632.5,2632.0,0.7668]
[1727361193720,3.79874,2632.5,2632.0,0.7668]
[1727361194564,3.79874,2632.5,2632.0,4.56611]
[1727361194768,3.79874,2632.5,2632.0,0.7668]
[1727361195123,3.79827,2632.8,2632.1,4.42519209]
[1727361195323,0.455127,2632.8,2632.0,0.7668]
[1727361195531,3.7989,2632.4,2631.7,3.7998]
[1727361195727,0.455127,2632.8,2631.8,0.55]
[1727361196057,0.455127,2632.8,2631.6,0.7817]
[1727361196366,0.455127,2632.8,2631.3,0.7817]
[1727361196367,3.79981,2631.8,2631.3,0.7817]
[1727361196540,3.79978,2631.8,2631.3,0.7817]
[1727361196747,0.8035,2632.3,2630.9,0.7817]
[1727361196748,3.80025,2631.4,2630.9,0.7817]
[1727361197275,7.60015,2631.6,2630.9,4.58266]
[1727361197482,3.85501358,2631.5,2630.6,0.04428]
[1727361197775,3.80121,2630.8,2630.6,0.04428]
[1727361198002,7.60188,2631.0,2630.6,0.04428]
[1727361198203,3.80092,2631.0,2630.6,0.04428]
[1727361198606,0.7793,2631.2,2630.6,0.04428]
[1727361198766,3.80126,2630.7,2630.6,0.04428]
[1727361200310,3.80091,2631.0,2630.6,0.04428]
[1727361200513,3.80114,2630.8,2630.6,0.04428]
[1727361201166,3.80126,2630.7,2630.6,0.04428]
[1727361201818,4.5615,2630.7,2630.6,0.04428]
[1727361202384,8.3331,2630.7,2630.6,0.04428]
[1727361205793,8.28472468,2630.7,2630.6,0.04428]
[1727361207032,7.52448468,2630.7,2630.6,0.04428]
[1727361207336,6.75288468,2630.7,2630.6,0.04428]
[1727361208902,3.80114,2630.8,2630.6,0.04428]
[1727361209520,4.62007,2631.5,2630.6,0.04428]
[1727361209722,3.80126,2630.7,2630.6,0.04428]
[1727361210219,3.80058,2631.2,2630.6,0.04428]
[1727361210220,3.80058,2631.2,2630.6,3.84555]
[1727361210477,3.80032,2631.4,2630.9,3.80093]
[1727361210748,3.80071,2631.1,2630.7,0.8036]
[1727361211331,3.80099,2630.9,2630.7,0.8036]
[1727361211705,7.60207,2630.9,2630.7,0.8036]
[1727361212034,3.80099,2630.9,2630.7,0.8036]
[1727361212349,3.801,2630.9,2630.7,0.8036]
[1727361212511,3.80112,2630.8,2630.7,0.8036]
[1727361212708,3.80126,2630.7,2630.6,0.04428]
[1727361213039,3.80112,2630.8,2630.6,0.04428]
[1727361213346,3.80126,2630.7,2630.6,0.04428]
[1727361213840,3.80112,2630.8,2630.6,0.04428]
[1727361214143,3.80086,2631.0,2630.6,0.04428]
[1727361214638,3.79976,2631.8,2631.1,0.7575]
[1727361214840,0.7588,2632.3,2631.1,0.7575]
[1727361214841,3.79915,2632.2,2631.1,0.7575]
[1727361215132,3.79915,2632.2,2631.3,3.80039]
[1727361215133,3.79964,2631.9,2631.3,3.80039]
[1727361215335,3.79964,2631.9,2631.4,0.05670718]
[1727361215536,0.4253257,2632.7,2631.5,4.60371]
[1727361215724,3.79969,2631.8,2631.5,0.8037]
[1727361215901,7.59867,2632.1,2631.5,4.60374]
[1727361216099,0.40126867,2632.6,2631.6,3.87585699]
[1727361216100,3.79911,2632.2,2631.6,3.87585699]
[1727361216342,3.79903,2632.3,2631.6,3.79987]
[1727361216503,3.0,2632.2,2631.7,3.87574451]
[1727361216699,6.79923,2632.2,2631.6,0.55]
[1727361216900,6.79923,2632.2,2631.6,4.34987]
[1727361217115,6.79923,2632.2,2631.7,3.79981]
[1727361217524,6.79923,2632.2,2631.6,4.34987]
[1727361217733,3.79903,2632.3,2631.8,3.79967]
[1727361217938,3.79871,2632.5,2632.0,0.833]
[1727361218104,3.79846,2632.7,2632.0,4.63227]
[1727361218414,3.79824,2632.8,2632.2,3.79901]
[1727361218627,0.8261,2633.2,2632.0,0.833]
[1727361218806,3.79817,2632.9,2632.3,3.79894]
[1727361219247,3.79787,2633.1,2632.4,0.7739]
[1727361219403,3.79787,2633.1,2632.6,0.55]
[1727361219823,3.79787,2633.1,2632.5,4.34863]
[1727361220023,3.79787,2633.1,2632.5,0.55]
[1727361220339,3.79796,2633.0,2632.5,0.55]
[1727361220720,0.40126867,2633.4,2632.4,0.7739]
[1727361221042,3.79852,2632.6,2632.4,0.7739]
[1727361221547,3.79852,2632.6,2631.8,3.79961]
[1727361221548,3.79877,2632.5,2631.9,4.61528]
[1727361221841,3.79882,2632.4,2632.0,0.55]
[1727361222047,3.7986,2632.6,2631.9,0.8158]
[1727361222230,3.79912,2632.2,2631.9,0.8158]
[1727361223343,3.79933,2632.1,2631.5,0.824]
[1727361223538,0.09497607,2632.5,2631.5,0.824]
[1727361223539,3.79951,2632.0,2631.5,0.824]
[1727361223714,3.79889,2632.4,2631.6,3.87585641]
[1727361224045,3.79889,2632.4,2631.8,3.79964]
[1727361224382,3.79856,2632.6,2632.1,0.7932]
[1727361224520,3.79832,2632.8,2632.3,3.79895]
[1727361224858,3.79832,2632.8,2632.2,0.55]
[1727361225056,3.79832,2632.8,2632.3,3.79888]
[1727361225855,3.79832,2632.8,2632.2,0.55]
[1727361225856,3.79832,2632.8,2632.2,4.34898]
[1727361226033,3.79832,2632.8,2632.2,0.55]
[1727361226229,3.79832,2632.8,2632.1,0.7932]
[1727361226230,3.79883,2632.4,2632.1,0.7932]
[1727361226734,3.799,2632.3,2632.1,0.7932]
[1727361227447,3.7988,2632.5,2632.1,0.7932]
[1727361227647,3.79883,2632.4,2632.1,0.7932]
[1727361228016,3.79862,2632.6,2632.1,0.7932]
[1727361228236,3.79867,2632.5,2632.1,0.7932]
[1727361228954,3.79862,2632.6,2632.1,0.7932]
[1727361228955,3.79882,2632.4,2632.1,0.7932]
[1727361229672,3.79904,2632.3,2631.8,4.60514]
[1727361229874,3.79895,2632.4,2631.8,4.60514]
[1727361230037,0.02159128,2632.6,2631.9,3.79951]
[1727361230038,3.82020128,2632.6,2631.9,3.79951]
[1727361230240,3.82020128,2632.6,2632.1,3.79924]
[1727361230241,0.02159128,2632.6,2632.1,3.79924]
[1727361230546,0.02159128,2632.6,2632.1,7.5984]
[1727361230752,0.02159128,2632.6,2632.1,3.79916]
[1727361230982,3.82012128,2632.6,2632.1,3.79916]
[1727361231869,0.02159128,2632.6,2632.0,3.79931]
[1727361232075,3.82014128,2632.6,2632.0,3.79931]
[1727361232258,0.02159128,2632.6,2632.4,4.58644]
[1727361232461,0.02159128,2632.6,2632.5,4.42463217]
[1727361232666,0.02159128,2632.6,2632.5,4.34867]
[1727361233448,0.02159128,2632.6,2632.4,4.58644]
[1727361233848,0.02159128,2632.6,2632.5,3.79867]
[1727361234053,0.02159128,2632.6,2632.5,9.78049508]
[1727361234361,0.02159128,2632.6,2632.5,13.461038]
[1727361235085,0.0169339,2633.6,2633.3,3.79742]
[1727361235389,0.0169339,2633.6,2633.5,4.54902]
[1727361235727,0.0169339,2633.6,2633.5,0.7518]
[1727361236530,0.0169339,2633.6,2633.2,3.79757]
[1727361236531,0.0169339,2633.6,2633.2,0.8109]
[1727361236901,3.8141139,2633.6,2633.2,0.8109]
[1727361237126,0.0169339,2633.6,2633.2,0.8109]
[1727361237423,3.8140339,2633.6,2633.2,0.8109]
[1727361237633,3.8140339,2633.6,2632.0,3.79936]
[1727361237634,3.79775,2633.2,2632.8,0.7655]
[1727361237837,3.79781,2633.1,2632.8,0.7655]
[1727361238129,3.79781,2633.1,2632.4,4.5642]
[1727361238934,3.79781,2633.1,2632.5,3.79854]
[1727361238935,3.79796,2633.0,2632.5,3.79854]
[1727361239238,0.09495036,2632.9,2632.2,3.79901]
[1727361239452,3.79839,2632.7,2632.1,3.79914]
[1727361239614,3.79839,2632.7,2632.0,4.61696]
[1727361239811,3.79891,2632.4,2632.0,0.8176]
[1727361240420,3.79944,2632.0,2631.6,0.7949]
[1727361240660,3.79972,2631.8,2631.6,0.7949]
[1727361240809,3.79944,2632.0,2631.6,0.7949]
[1727361241012,3.79955,2631.9,2631.6,0.7949]
[1727361241448,3.79955,2631.9,2631.3,3.8210668]
[1727361241668,3.79956,2631.9,2631.3,3.8210668]
[1727361241965,3.79944,2632.0,2631.3,3.8210668]
[1727361241966,3.79944,2632.0,2631.3,3.8210568]
[1727361242155,3.79963,2631.9,2631.3,3.8210568]
[1727361242556,3.79992,2631.7,2631.3,0.0207468]
[1727361242759,3.79931,2632.1,2631.3,0.0207468]
[1727361242957,3.79855,2632.6,2632.0,3.79931]
[1727361243269,3.79828,2632.8,2631.9,0.8093]
[1727361243430,4.60028,2633.1,2632.5,3.79866]
[1727361243630,3.79788,2633.1,2632.5,3.79866]
[1727361243829,3.79804,2633.0,2632.4,3.79873]
[1727361244067,3.79788,2633.1,2632.2,0.55]
[1727361244367,3.79788,2633.1,2632.6,3.79847]
[1727361244579,3.7976,2633.3,2632.7,3.79828]
[1727361244931,3.7976,2633.3,2632.6,3.79847]
[1727361245134,3.7976,2633.3,2632.8,3.79813]
[1727361245469,7.59462,2633.5,2632.9,3.79808]
[1727361245698,0.0169339,2633.6,2632.7,3.79831]
[1727361245834,3.7974,2633.4,2632.8,3.79811]
[1727361246644,3.79755,2633.3,2632.8,0.55]
[1727361246844,0.0169339,2633.6,2632.5,9.154468]
[1727361246845,0.0169339,2633.6,2632.6,0.55]
[1727361247035,0.0169339,2633.6,2633.1,3.7978]
[1727361247232,0.0169339,2633.6,2633.0,0.8018]
[1727361247436,0.0169339,2633.6,2633.1,3.87372303]
[1727361247741,0.0169339,2633.6,2633.2,3.87356304]
[1727361247945,3.8140239,2633.6,2633.2,0.07594304]
[1727361248445,3.79723,2633.5,2633.2,0.07594304]
[1727361248682,4.55840439,2633.5,2632.7,4.57574]
[1727361248833,3.7976,2633.3,2632.7,8.37402]
[1727361249034,3.7976,2633.3,2632.7,4.57574]
[1727361249269,3.7976,2633.3,2632.7,0.7775]
[1727361249475,3.79802,2633.0,2632.4,3.79879]
[1727361249652,3.79802,2633.0,2632.3,7.59957]
[1727361249653,3.79802,2633.0,2632.5,3.79865]
[1727361249853,3.79802,2633.0,2632.3,7.59953]
[1727361250059,1.20026,2633.3,2632.3,7.59953]
[1727361250060,3.79838,2632.7,2632.3,0.8007]
[1727361250241,3.79818,2632.9,2632.3,0.8007]
[1727361250569,3.79826,2632.8,2632.3,4.59963]
[1727361250810,3.79847,2632.7,2632.3,0.8007]
[1727361251020,3.79847,2632.7,2632.1,5.355868]
[1727361251312,3.79847,2632.7,2632.0,3.79929]
[1727361251313,3.79847,2632.7,2632.2,3.79909]
[1727361251515,3.79813,2632.9,2632.3,0.0745739]
[1727361251814,3.79787,2633.1,2632.5,0.8253]
[1727361252016,3.79787,2633.1,2632.6,0.07595643]
[1727361252175,3.79787,2633.1,2632.6,3.87447643]
[1727361252384,3.79731,2633.5,2632.7,0.07595623]
[1727361252683,3.79731,2633.5,2633.0,3.79785]
[1727361253311,0.0169339,2633.6,2633.0,3.79785]
[1727361253515,3.79731,2633.5,2633.0,3.79785]
[1727361253728,0.0169339,2633.6,2633.1,0.07594426]
[1727361254016,0.0169339,2633.6,2633.4,3.79728]
[1727361254279,0.0169339,2633.6,2633.3,0.55]
[1727361254514,0.0169339,2633.6,2633.5,4.70035317]
[1727361254678,0.0169339,2633.6,2633.5,0.90313317]
[1727361255611,0.0169339,2633.6,2633.5,0.90313265]
[1727361255822,0.0169339,2633.6,2633.5,4.70035265]
[1727361256041,0.0169339,2633.6,2633.5,5.25035265]
[1727361256335,0.0169339,2633.6,2633.5,5.17442]
[1727361256851,0.0169339,2633.6,2633.5,5.25034008]
[1727361257384,0.0169339,2633.6,2633.5,8.2503401]
[1727361257596,0.0376807,2634.4,2634.0,3.79641]
[1727361257814,0.0376807,2634.4,2634.1,0.07591491]
[1727361258017,0.0376807,2634.4,2633.7,3.79681]
[1727361258754,3.79622,2634.2,2633.6,5.355868]
[1727361258911,3.8337007,2634.4,2633.7,3.7969]
[1727361259112,3.8337007,2634.4,2633.7,7.59373]
[1727361259348,0.0376807,2634.4,2633.9,3.79664]
[1727361259548,0.0376807,2634.4,2634.0,3.79644]
[1727361259855,0.0376807,2634.4,2634.1,3.79634]
[1727361260417,0.0376807,2634.4,2634.0,5.355868]
[1727361260745,0.0376807,2634.4,2634.0,9.152358]
[1727361260966,0.0376807,2634.4,2634.0,5.355868]
[1727361261456,3.79617,2634.3,2633.7,3.7969]
[1727361261643,3.79617,2634.3,2633.7,3.79684]
[1727361261843,0.0376807,2634.4,2633.7,3.79683]
[1727361262031,0.0376807,2634.4,2633.8,4.3467]
[1727361262354,0.0376807,2634.4,2633.9,3.79664]
[1727361262528,0.0376807,2634.4,2633.8,4.34678]
[1727361262733,0.0376807,2634.4,2633.9,3.79654]
[1727361263159,0.0376807,2634.4,2633.9,7.59307]
[1727361263348,0.0376807,2634.4,2633.9,3.79653]
[1727361263546,0.0376807,2634.4,2633.9,7.59309]
[1727361263729,0.0376807,2634.4,2633.7,3.79681]
[1727361263934,3.79617,2634.3,2633.8,3.79678]
[1727361264165,3.79623,2634.2,2633.7,3.79681]
[1727361264354,0.0376807,2634.4,2633.7,3.79681]
[1727361264553,0.0376807,2634.4,2633.9,3.79652]
[1727361265082,0.0376807,2634.4,2633.5,0.8272]
[1727361265083,3.79634,2634.2,2633.5,0.8272]
[1727361265380,3.7966,2634.0,2633.5,3.7972]
[1727361265736,3.7966,2634.0,2633.4,5.34572196]
[1727361265955,3.7966,2634.0,2633.4,9.14304196]
[1727361266157,4.25681207,2634.2,2633.5,3.87311233]
[1727361266458,3.79622,2634.2,2633.7,8.45434762]
[1727361267303,3.79622,2634.2,2633.8,0.07592572]
[1727361267502,0.7713,2634.3,2633.8,3.87270572]
[1727361267792,0.0376807,2634.4,2634.1,4.65752762]
[1727361267995,3.8336107,2634.4,2633.8,0.8327]
[1727361268205,0.768,2634.1,2633.5,3.79714]
[1727361268512,4.5644,2634.1,2633.5,7.59428]
[1727361268657,0.42104177,2634.4,2633.2,0.8327]
[1727361268658,4.6513007,2634.4,2633.8,3.79668]
[1727361268860,4.6512207,2634.4,2633.9,3.87256261]
[1727361269058,8.4472407,2634.4,2633.9,3.87256261]
[1727361269289,4.6512207,2634.4,2633.9,3.87256261]
[1727361269489,3.79611,2634.3,2633.9,0.07592261]
[1727361269661,3.79611,2634.3,2633.8,8.45420762]
[1727361270404,4.6512207,2634.4,2634.0,3.79647]
[1727361270405,0.0376807,2634.4,2634.0,3.79647]
[1727361270762,3.8336807,2634.4,2633.9,0.55]
[1727361270964,3.8336807,2634.4,2633.8,13.07959762]
[1727361271392,0.0376807,2634.4,2634.2,4.65752762]
[1727361271859,0.0376807,2634.4,2634.2,8.45362762]